fUSD/lending_fUSD_20240609
["ID","MTS","AMOUNT","RATE_DAILY","PERIOD"]
[328878465,1717944656505,-8143.79575609,0.00029,2]
[328878466,1717944656517,-1148.77802045,0.00029,2]
[328878467,1717944656529,-62048.20233346,0.00029,2]
[328878468,1717944656540,-743.26519105,0.00029,2]
[328878469,1717944656550,-6141.60583739,0.00029,2]
[328878470,1717944656560,-19263.37,0.00029,3]
[328878471,1717944656571,-1350.0,0.00029,2]
[328878472,1717944656581,-152.802224,0.00029,7]
[328878473,1717944656590,-159.85217,0.00029,7]
[328878474,1717944656600,-159.85217,0.00029,7]
[328878475,1717944656611,-183.709206,0.00029,7]
[328878476,1717944656621,-154.704264,0.00029,7]
[328878477,1717944656631,-183.709206,0.00029,7]
[328878478,1717944656641,-151.0,0.00029,7]
[328878479,1717944656651,-154.704264,0.00029,7]
[328878480,1717944656661,-247.32303,0.00029,7]
[328878481,1717944656672,-212.992456,0.00029,7]
[328878482,1717944656681,-487.965915,0.00029,7]
[328878483,1717944656691,-212.992463,0.00029,7]
[328878484,1717944656701,-487.965921,0.00029,7]
[328878485,1717944656712,-151.0,0.00029,7]
[328878486,1717944656727,-151.0,0.00029,7]
[328878487,1717944656738,-662.035008,0.00029,7]
[328878488,1717944656748,-662.035005,0.00029,7]
[328878489,1717944656758,-151.0,0.00029,7]
[328878490,1717944656771,-402.647195,0.00029,7]
[328878491,1717944656781,-402.6472,0.00029,7]
[328878492,1717944656791,-180.625193,0.00029,7]
[328878493,1717944656803,-211.430945,0.00029,7]
[328878494,1717944656814,-151.0,0.00029,7]
[328878495,1717944656825,-211.430951,0.00029,7]
[328878496,1717944656836,-151.0,0.00029,7]
[328878497,1717944656847,-228.217838,0.00029,7]
[328878498,1717944656857,-228.217837,0.00029,7]
[328878499,1717944656867,-151.0,0.00029,7]
[328878500,1717944656878,-151.0,0.00029,7]
[328878501,1717944656890,-895.733874,0.00029,7]
[328878502,1717944656901,-895.733864,0.00029,7]
[328878503,1717944656912,-2738.771996,0.00029,7]
[328878504,1717944656923,-2738.771996,0.00029,7]
[328878505,1717944656933,-303.9736,0.00029,7]
[328878506,1717944656944,-303.9736,0.00029,7]
[328878507,1717944656954,-299.025872,0.00029,7]
[328878508,1717944656964,-299.025872,0.00029,7]
[328878509,1717944656975,-151.0,0.00029,7]
[328878510,1717944656984,-165.212234,0.00029,7]
[328878511,1717944656994,-154.285002,0.00029,7]
[328878512,1717944657005,-151.0,0.00029,7]
[328878513,1717944657014,-165.212234,0.00029,7]
[328878514,1717944657024,-540.449146,0.00029,7]
[328878515,1717944657034,-296.153581,0.00029,7]
[328878516,1717944657043,-540.449146,0.00029,7]
[328878517,1717944657052,-410.211818,0.00029,7]
[328878518,1717944657063,-410.211818,0.00029,7]
[328878519,1717944657072,-366.325109,0.00029,7]
[328878520,1717944657082,-640.727778,0.00029,7]
[328878521,1717944657092,-366.325109,0.00029,7]
[328878522,1717944657101,-640.727778,0.00029,7]
[328878523,1717944657110,-151.191176,0.00029,7]
[328878524,1717944657120,-154.78947006,0.00029006,2]
[328878525,1717944657130,-5000.0,0.00029006,2]
[328878526,1717944657140,-5004.93,0.00029011,2]
[328878527,1717944657150,-151.36013313,0.00029011,2]
[328878528,1717944657160,-364.48571203,0.00029014,10]
[328878529,1717944657170,-155.08284119,0.00029024,2]
[328878530,1717944657180,-151.0,0.00029027,7]
[328878531,1717944657190,-20000.0,0.0002905,4]
[328878532,1717944657199,-163.75912009,0.00029056,2]
[328878533,1717944657210,-154.78947006,0.00029056,2]
[328878534,1717944657220,-174.36890067,0.00029067,2]
[328878535,1717944657230,-160.7991607,0.00029073,2]
[328878536,1717944657239,-2732.55435557,0.00029078,2]
[328878537,1717944657249,-218.0,0.0002908,2]
[328878538,1717944657259,-292.19824216,0.00029088,2]
[328878539,1717944657269,-223.56162716,0.00029106,2]
[328878540,1717944657278,-995.5626447,0.0002911,2]
[328878541,1717944657288,-753.8839404,0.0002911,2]
[328878542,1717944657298,-27767.8368826,0.0002911,2]
[328878543,1717944657307,-21027.0306922,0.0002911,2]
[328878544,1717944657319,-435.6575339,0.0002911,2]
[328878545,1717944657329,-329.8990978,0.0002911,2]
[328878546,1717944657339,-151.36013313,0.0002911,2]
[328878547,1717944657349,-2738.771996,0.0002911,7]
[328878548,1717944657359,-746.9441897,0.0002911,2]
[328878549,1717944657370,-514.7518053,0.0002911,2]
[328878550,1717944657380,-2738.771988,0.0002911,7]
[328878551,1717944657391,-303.9736,0.0002911,7]
[328878552,1717944657402,-303.973606,0.0002911,7]
[328878553,1717944657416,-299.025872,0.0002911,7]
[328878554,1717944657426,-299.025862,0.0002911,7]
[328878555,1717944657435,-151.0,0.0002911,7]
[328878556,1717944657445,-165.212234,0.0002911,7]
[328878557,1717944657455,-151.0,0.0002911,7]
[328878558,1717944657465,-165.212224,0.0002911,7]
[328878559,1717944657476,-540.449146,0.0002911,7]
[328878560,1717944657486,-540.449138,0.0002911,7]
[328878561,1717944657496,-410.211818,0.0002911,7]
[328878562,1717944657506,-410.21181,0.0002911,7]
[328878563,1717944657517,-366.325109,0.0002911,7]
[328878564,1717944657528,-640.727778,0.0002911,7]
[328878565,1717944657538,-366.325107,0.0002911,7]
[328878566,1717944657549,-640.727782,0.0002911,7]
[328878567,1717944657560,-151.36013313,0.00029119,2]
[328878568,1717944657571,-155.01604512,0.00029129,2]
[328878569,1717944657586,-179630.4650787,0.0002913,10]
[328878570,1717944657609,-416.526,0.0002913,10]
[328878571,1717944657682,-150.0,0.00026288,2]
[328878572,1717944657697,-150.0,0.00026462,2]
[328878573,1717944657710,-150.0,0.0002658,2]
[328878574,1717944657728,-150.0,0.00026664,2]
[328878575,1717944657743,-150.0,0.00026749,2]
[328878576,1717944657756,-150.0,0.00026808,2]
[328878577,1717944657771,-196.21,0.00027397,10]
[328878578,1717944657785,-151.0,0.00028485,7]
[328878579,1717944657801,-2019.27382435,0.0002913,10]
[328878580,1717944657954,-150.0,0.00026361,2]
[328878581,1717944657967,-150.0,0.00026415,2]
[328878582,1717944657982,-150.0,0.00026453,2]
[328878583,1717944657997,-150.0,0.00026531,2]
[328878584,1717944658009,-150.0,0.00026567,2]
[328878585,1717944658022,-146.01,0.00026588,2]
[328878586,1717944658497,-3.99,0.00026588,2]
[328878587,1717944658510,-150.0,0.00026601,2]
[328878588,1717944658523,-150.0,0.00026617,2]
[328878589,1717944658537,-78.85633833,0.00026638,2]
[328878590,1717944658553,-71.14366167,0.00026638,2]
[328878591,1717944658563,-150.0,0.00026647,2]
[328878592,1717944658574,-150.0,0.00026649,2]
[328878593,1717944658585,-150.0,0.00026694,2]
[328878594,1717944658595,-150.0,0.00026707,2]
[328878595,1717944658606,-150.0,0.00026825,2]
[328878596,1717944658616,-150.0,0.00026828,2]
[328878597,1717944658626,-150.0,0.0002691,2]
[328878598,1717944658637,-151.0,0.00028937,7]
[328878599,1717944658648,-151.191176,0.0002911,7]
[328878600,1717944658659,-352.99963913,0.0002913,10]
[328878601,1717944658671,-699.27,0.0002913,10]
[328878602,1717944660746,-1552.33040497,0.0002913,10]
[328878603,1717944660843,12000.0,0.00015,2]
[328878604,1717944660869,22985.38247423,0.00015,2]
[328878605,1717944664470,173.34008465,0.00012408,2]
[328878607,1717944747673,80000.0,0.00012408,2]
[328878608,1717944747701,259121.49353918,0.00012408,2]
[328878609,1717944763693,20452.78966919,0.00012408,2]
[328878611,1717944779677,98657.87278413,0.00012408,2]
[328878614,1717945634105,-3611.78872067,0.00016811,2]
[328878619,1717945833257,-781.8474424,0.00016711,2]
[328878620,1717945833267,-150.0,0.0001681,2]
[328878621,1717945833277,-34985.38247423,0.00016811,2]
[328878622,1717945833287,-156.39536925,0.00016811,2]
[328878623,1717945833297,-1268.0,0.00017011,2]
[328878624,1717945833306,-242.8106,0.00017125,2]
[328878625,1717945833316,-606.0,0.000197,2]
[328878626,1717945833326,-2298.0,0.000198,2]
[328878627,1717945833336,-226.67450997,0.000201,2]
[328878628,1717945833347,-342.89,0.00024327,2]
[328878629,1717945833358,-1000.0,0.00024376,2]
[328878630,1717945833369,-205.75,0.00024384,2]
[328878631,1717945833381,-3685.398,0.00024878,2]
[328878632,1717945833392,-1250.0,0.00025,2]
[328878633,1717945833403,-23977.58431279,0.00025,2]
[328878634,1717945833414,-27774.47063385,0.00025,2]
[328878635,1717945833423,-500.0,0.00025438,2]
[328878636,1717945833432,-236.20903743,0.00025438,2]
[328878637,1717945833442,-9026.35,0.00025439,2]
[328878638,1717945833455,-250.0,0.00025508,2]
[328878639,1717945833464,-4892.7,0.00025521,2]
[328878640,1717945833474,-1087.16,0.00025793,2]
[328878641,1717945833484,-250.0,0.00025818,2]
[328878642,1717945833493,-1000.0,0.00025852,2]
[328878643,1717945833503,-4985.19,0.00025863,2]
[328878644,1717945833513,-1575.9491632,0.00026,2]
[328878645,1717945833522,-156.59274255,0.00026006,2]
[328878646,1717945833532,-250.0,0.00026093,2]
[328878647,1717945833542,-166.97042413,0.00026093,2]
[328878648,1717945833552,-154.78947007,0.00026128,2]
[328878649,1717945833562,-595.93,0.00026173,2]
[328878650,1717945833572,-154.78947007,0.00026187,2]
[328878651,1717945833581,-157.57898843,0.00026218,2]
[328878652,1717945833591,-1000.0,0.00026285,2]
[328878653,1717945833600,-166.66666666,0.00026294,2]
[328878654,1717945833609,-154.78947007,0.00026324,2]
[328878655,1717945833618,-166.66666667,0.00026416,2]
[328878656,1717945833628,-7667.04828895,0.00026541,2]
[328878657,1717945833637,-156.59274255,0.00026545,2]
[328878658,1717945833647,-451.31814676,0.00026568,2]
[328878659,1717945833656,-155.01604514,0.00026587,2]
[328878660,1717945833666,-156.91329653,0.00026588,2]
[328878661,1717945833675,-342.89,0.00026591,2]
[328878662,1717945833685,-151.36013318,0.00026678,2]
[328878663,1717945833695,-155.01604514,0.00026729,2]
[328878664,1717945833704,-163.75912009,0.0002685,2]
[328878665,1717945833714,-174.15629641,0.00026919,2]
[328878666,1717945833723,-4029.88662948,0.00027,2]
[328878667,1717945833732,-150.0,0.00027,2]
[328878668,1717945833742,-1300.0,0.00027,2]
[328878669,1717945833945,-17796.04120922,0.00027,2]
[328878670,1717945833959,-167.9,0.00027003,2]
[328878671,1717945833969,-155.01604514,0.00027015,2]
[328878672,1717945833979,-156.91329653,0.0002717,2]
[328878673,1717945833989,-154.78947007,0.00027178,2]
[328878674,1717945834001,-154.78947007,0.00027296,2]
[328878675,1717945834010,-166.66666666,0.00027299,2]
[328878676,1717945834020,-166.97042413,0.00027312,2]
[328878677,1717945834030,-154.78947007,0.00027317,2]
[328878678,1717945834040,-166.97042413,0.00027329,2]
[328878679,1717945834050,-156.59274255,0.00027381,2]
[328878680,1717945834060,-516.15976631,0.0002739,2]
[328878681,1717945834070,-150.0,0.00027397,2]
[328878682,1717945834079,-500.0,0.000274,2]
[328878683,1717945834089,-1000.0,0.00027459,2]
[328878684,1717945834099,-10000.0,0.00027459,2]
[328878685,1717945834113,-4891.7275,0.00027459,2]
[328878687,1717945834124,-330.9619,0.00027459,2]
[328878689,1717945834133,-5069.39217333,0.00027459,2]
[328878691,1717945834143,-156.59274255,0.00027495,2]
[328878693,1717945834154,-156.59274255,0.00027537,2]
[328878695,1717945834164,-1407.441528,0.00027559,2]
[328878697,1717945834174,-179.831585,0.00027559,2]
[328878699,1717945834186,-715.952673,0.00027559,2]
[328878701,1717945834196,-186.101951,0.00027559,2]
[328878703,1717945834205,-1694.433925,0.00027559,2]
[328878705,1717945834215,-1531.69187,0.00027559,2]
[328878707,1717945834224,-161.218687,0.00027559,2]
[328878709,1717945834234,-740.698171,0.00027559,2]
[328878711,1717945834244,-929.194201,0.00027559,2]
[328878713,1717945834254,-277.787101,0.00027559,2]
[328878715,1717945834263,-205.242778,0.00027559,2]
[328878717,1717945834274,-842.269313,0.00027559,2]
[328878719,1717945834283,-166.97042413,0.00027681,2]
[328878720,1717945834292,-5069.39217331,0.0002773,2]
[328878721,1717945834302,-154.78947007,0.00027748,2]
[328878722,1717945834311,-151.25620831,0.00027791,2]
[328878723,1717945834322,-500.0,0.00027833,2]
[328878724,1717945834331,-200.0,0.00027833,2]
[328878725,1717945834340,-266.10450733,0.000279,2]
[328878726,1717945834350,-1407.441528,0.00027904,2]
[328878727,1717945834360,-715.952673,0.00027904,2]
[328878728,1717945834370,-1694.433925,0.00027904,2]
[328878729,1717945834380,-1531.69187,0.00027904,2]
[328878730,1717945834390,-740.698171,0.00027904,2]
[328878731,1717945834400,-929.194201,0.00027904,2]
[328878732,1717945834410,-842.269313,0.00027904,2]
[328878733,1717945834420,-180.0,0.00027932,2]
[328878734,1717945834430,-154.78947007,0.00027941,2]
[328878735,1717945834440,-161.11332937,0.00027947,2]
[328878736,1717945834452,-1221.31134681,0.00028,2]
[328878737,1717945834462,-5069.39217331,0.00028001,2]
[328878738,1717945834474,-161.218687,0.00028018,2]
[328878739,1717945834485,-150.0,0.00028118,2]
[328878740,1717945834496,-156.59274255,0.00028121,2]
[328878741,1717945834508,-417.34,0.00028164,2]
[328878742,1717945834518,-850.69,0.00028164,2]
[328878743,1717945834528,-417.34,0.00028164,2]
[328878744,1717945834538,-850.69,0.00028164,2]
[328878745,1717945834548,-417.34,0.00028164,2]
[328878746,1717945834559,-850.69,0.00028164,2]
[328878747,1717945834570,-417.34,0.00028164,2]
[328878748,1717945834581,-850.69,0.00028164,2]
[328878749,1717945834591,-417.34,0.00028164,2]
[328878750,1717945834602,-850.69,0.00028164,2]
[328878751,1717945834614,-850.69,0.00028164,2]
[328878752,1717945834623,-830.76,0.00028164,2]
[328878753,1717945834634,-850.69,0.00028164,2]
[328878754,1717945834645,-850.69,0.00028164,2]
[328878755,1717945834656,-172.32,0.00028164,2]
[328878756,1717945834666,-156.59274255,0.00028169,2]
[328878757,1717945834676,-1407.441528,0.00028248,2]
[328878758,1717945834687,-715.952673,0.00028248,2]
[328878759,1717945834697,-1694.433925,0.00028248,2]
[328878760,1717945834708,-1531.69187,0.00028248,2]
[328878761,1717945834720,-740.698171,0.00028248,2]
[328878762,1717945834729,-929.194201,0.00028248,2]
[328878763,1717945834741,-842.269313,0.00028248,2]
[328878764,1717945834752,-5069.39217331,0.00028273,2]
[328878765,1717945834762,-156.59274255,0.00028277,2]
[328878766,1717945834774,-1051.66,0.00028301,2]
[328878767,1717945834787,-150.0,0.00028301,2]
[328878768,1717945834797,-150.0,0.00028301,2]
[328878769,1717945834808,-150.0,0.00028301,2]
[328878770,1717945834819,-526.32,0.00028301,2]
[328878771,1717945834829,-422.59,0.00028301,2]
[328878772,1717945834841,-150.0,0.00028301,2]
[328878773,1717945834852,-150.63,0.00028301,2]
[328878774,1717945834864,-150.0,0.00028301,2]
[328878775,1717945834874,-150.0,0.00028301,2]
[328878776,1717945834885,-353.37,0.00028301,2]
[328878777,1717945834896,-164.17,0.00028301,2]
[328878778,1717945834906,-422.59,0.00028301,2]
[328878779,1717945834916,-150.0,0.00028301,2]
[328878780,1717945834925,-150.0,0.00028301,2]
[328878781,1717945834935,-526.32,0.00028301,2]
[328878782,1717945834946,-150.0,0.00028301,2]
[328878783,1717945834955,-150.0,0.00028301,2]
[328878784,1717945834964,-353.37,0.00028301,2]
[328878785,1717945834973,-150.0,0.00028301,2]
[328878786,1717945834982,-164.17,0.00028301,2]
[328878787,1717945834993,-150.0,0.00028301,2]
[328878788,1717945835003,-353.37,0.00028301,2]
[328878789,1717945835012,-150.0,0.00028301,2]
[328878790,1717945835022,-150.0,0.00028301,2]
[328878791,1717945835032,-150.0,0.00028301,2]
[328878792,1717945835041,-150.0,0.00028301,2]
[328878793,1717945835050,-422.59,0.00028301,2]
[328878794,1717945835060,-164.17,0.00028301,2]
[328878795,1717945835072,-150.0,0.00028301,2]
[328878796,1717945835082,-526.32,0.00028301,2]
[328878797,1717945835091,-150.0,0.00028301,2]
[328878798,1717945835101,-150.0,0.00028301,2]
[328878799,1717945835115,-164.17,0.00028301,2]
[328878800,1717945835124,-150.0,0.00028301,2]
[328878801,1717945835134,-353.37,0.00028301,2]
[328878802,1717945835145,-150.0,0.00028301,2]
[328878803,1717945835155,-422.59,0.00028301,2]
[328878804,1717945835166,-526.32,0.00028301,2]
[328878805,1717945835177,-150.0,0.00028301,2]
[328878806,1717945835190,-421.59,0.00028301,2]
[328878807,1717945835202,-150.0,0.00028301,2]
[328878808,1717945835214,-352.52,0.00028301,2]
[328878809,1717945835225,-163.82,0.00028301,2]
[328878810,1717945835235,-150.0,0.00028301,2]
[328878811,1717945835246,-525.07,0.00028301,2]
[328878812,1717945835258,-150.0,0.00028301,2]
[328878813,1717945835268,-156.59274255,0.00028344,2]
[328878814,1717945835278,-813.9757,0.00028385,2]
[328878815,1717945835288,-161.218687,0.00028478,2]
[328878816,1717945835298,-156.59274255,0.00028482,2]
[328878817,1717945835310,-948.43354967,0.00028485,2]
[328878818,1717945835319,-446.97972469,0.00028485,2]
[328878819,1717945835329,-169.14140858,0.00028485,2]
[328878820,1717945835338,-1000.0,0.00028493,2]
[328878821,1717945835347,-249.99793499,0.000285,4]
[328878822,1717945835358,-1087.16,0.00028533,2]
[328878823,1717945835368,-5069.39217331,0.00028544,2]
[328878824,1717945835377,-930.36947179,0.00028545,2]
[328878825,1717945835387,-156.46370926,0.00028545,4]
[328878826,1717945835396,-1407.441528,0.00028593,2]
[328878827,1717945835406,-715.952673,0.00028593,2]
[328878828,1717945835416,-1694.433925,0.00028593,2]
[328878829,1717945835426,-1531.69187,0.00028593,2]
[328878830,1717945835436,-740.698171,0.00028593,2]
[328878831,1717945835446,-929.194201,0.00028593,2]
[328878832,1717945835456,-842.269313,0.00028593,2]
[328878833,1717945835467,-4951.67,0.00028603,2]
[328878834,1717945835477,-155.01604514,0.00028629,2]
[328878835,1717945835487,-173.51,0.00028656,2]
[328878836,1717945835497,-154.78947012,0.000287,2]
[328878837,1717945835509,-163.75912011,0.00028709,2]
[328878838,1717945835519,-166.97042413,0.00028713,2]
[328878839,1717945835529,-160.61951847,0.00028758,2]
[328878840,1717945835539,-296.0,0.00028783,5]
[328878841,1717945835549,-5069.39217331,0.00028815,2]
[328878842,1717945835559,-150.0,0.00028839,2]
[328878843,1717945835569,-452.40008,0.0002884,2]
[328878844,1717945835579,-342.89,0.00028855,2]
[328878845,1717945835589,-412.75360643,0.00028856,2]
[328878846,1717945835600,-2507.23,0.00028908,2]
[328878847,1717945835610,-155.01604515,0.00028935,2]
[328878848,1717945835620,-1407.441528,0.00028937,2]
[328878849,1717945835630,-715.952673,0.00028937,2]
[328878850,1717945835640,-1694.433925,0.00028937,2]
[328878851,1717945835650,-1531.69187,0.00028937,2]
[328878852,1717945835660,-161.218687,0.00028937,2]
[328878853,1717945835669,-740.698171,0.00028937,2]
[328878854,1717945835679,-929.194201,0.00028937,2]
[328878855,1717945835690,-842.269313,0.00028937,2]
[328878856,1717945835703,-2507.23,0.00028977,2]
[328878857,1717945835715,-155.0,0.00028982,2]
[328878858,1717945835728,-1350.0,0.00029,2]
[328878859,1717945835740,-1488.77203247,0.00029,2]
[328878860,1717945835752,-4170.43277724,0.00029,2]
[328878861,1717945835764,-390.24917936,0.00029,2]
[328878862,1717945835775,-390.24917936,0.00029,2]
[328878863,1717945835786,-390.24917936,0.00029,2]
[328878864,1717945835796,-390.24917936,0.00029,2]
[328878865,1717945835807,-390.24917936,0.00029,2]
[328878866,1717945835819,-390.24917936,0.00029,2]
[328878867,1717945835831,-390.24917936,0.00029,2]
[328878868,1717945835842,-390.24917936,0.00029,2]
[328878869,1717945835853,-390.24917936,0.00029,2]
[328878870,1717945835865,-390.24917936,0.00029,2]
[328878871,1717945835876,-390.24917936,0.00029,2]
[328878872,1717945835888,-390.24917936,0.00029,2]
[328878873,1717945835900,-390.24917936,0.00029,2]
[328878874,1717945835911,-390.24917936,0.00029,2]
[328878875,1717945835922,-390.24917936,0.00029,2]
[328878876,1717945835935,-390.24917936,0.00029,2]
[328878877,1717945835949,-390.24917936,0.00029,2]
[328878878,1717945835961,-390.24917936,0.00029,2]
[328878879,1717945835973,-390.24917936,0.00029,2]
[328878880,1717945835984,-390.24917936,0.00029,2]
[328878881,1717945835996,-390.24917936,0.00029,2]
[328878882,1717945836007,-390.24917936,0.00029,2]
[328878883,1717945836019,-390.24917936,0.00029,2]
[328878884,1717945836032,-390.24917936,0.00029,2]
[328878885,1717945836045,-390.24917936,0.00029,2]
[328878886,1717945836056,-390.24917936,0.00029,2]
[328878887,1717945836066,-390.24917936,0.00029,2]
[328878888,1717945836078,-390.24917936,0.00029,2]
[328878889,1717945836089,-390.24917936,0.00029,2]
[328878890,1717945836101,-390.24917936,0.00029,2]
[328878891,1717945836117,-390.24917936,0.00029,2]
[328878892,1717945836128,-390.24917936,0.00029,2]
[328878893,1717945836139,-390.24917936,0.00029,2]
[328878894,1717945836151,-390.24917936,0.00029,2]
[328878895,1717945836162,-390.24917936,0.00029,2]
[328878896,1717945836172,-160.74471409,0.00029,2]
[328878897,1717945836200,-229.50446527,0.00029,2]
[328878898,1717945836212,-270.49553473,0.00029,2]
[328878899,1717945836228,-119.75364463,0.00029,2]
[328878900,1717945836240,-390.24917936,0.00029,2]
[328878901,1717945836253,-390.24917936,0.00029,2]
[328878902,1717945836265,-390.24917936,0.00029,2]
[328878903,1717945836279,-909.85529542,0.0002903,2]
[328878904,1717945836294,-202.56145057,0.0002903,2]
[328878905,1717945836306,-274.51725021,0.0002903,2]
[328878906,1717945836319,-174.36890067,0.0002903,2]
[328878907,1717945836331,-325.42886535,0.0002903,2]
[328878908,1717945836344,-3863.86705507,0.0002903,2]
[328878909,1717945836375,-1192.8949193,0.0002903,2]
[328878910,1717945836392,-1169.5,0.0002903,2]
[328878911,1717945836410,-265.65120639,0.0002903,2]
[328878912,1717945836432,-1008.08681924,0.0002903,2]
[328878913,1717945836444,-166.97042413,0.00029034,2]
[328878914,1717945836455,-180.07880862,0.00029036,5]
[328878915,1717945836466,-608.86340863,0.00029036,2]
[328878916,1717945836477,-4537.32869964,0.00029036,2]
[328878917,1717945836489,-156.91329654,0.0002904,2]
[328878918,1717945836500,-366.01312452,0.00029078,2]
[328878919,1717945836512,-5069.39217331,0.00029086,15]
[328878920,1717945836524,-160.0,0.000291,2]
[328878921,1717945836537,-345.0,0.000291,2]
[328878922,1717945836550,-487.0,0.000291,13]
[328878923,1717945836565,-691.0,0.000291,2]
[328878924,1717945836580,-1005.18,0.000291,2]
[328878925,1717945836593,-150.0,0.000291,6]
[328878926,1717945836606,-682.86283785,0.00029102,2]
[328878927,1717945836618,-909.85529537,0.00029109,2]
[328878928,1717945836628,-2381.037417,0.00029118,2]
[328878929,1717945836639,-512.20523642,0.00029118,2]
[328878930,1717945836652,-186.81772801,0.0002912,2]
[328878931,1717945836665,-151.83,0.0002912,2]
[328878932,1717945836676,-2402.5,0.00029128,2]
[328878933,1717945836689,-713.88392726,0.00029128,2]
[328878934,1717945836702,-537.72037607,0.00029128,2]
[328878935,1717945836714,-81390.21268996,0.00029129,2]
[328878938,1717945839000,-362.07884911,0.00029129,2]
[328878939,1717945839014,-219.76012529,0.00029129,2]
[328878940,1717945839026,-2388.94041669,0.0002913,13]
[328878941,1717945839041,-3426.83173226,0.0002913,13]
[328878942,1717945839055,-622.21983407,0.0002913,13]
[328878943,1717945839069,-703.20536157,0.0002913,13]
[328878944,1717945839084,-755.41426158,0.0002913,13]
[328878945,1717945839098,-2689.0618997,0.0002913,13]
[328878946,1717945839116,-491.9965155,0.0002913,13]
[328878948,1717945839467,-836.87762474,0.0002913,13]
[328878950,1717945839484,-13042.15733404,0.0002913,13]
[328878952,1717945839498,-10435.96645618,0.0002913,13]
[328878955,1717945839513,-461.61248665,0.0002913,13]
[328878957,1717945839527,-255.9999999,0.0002913,13]
[328878959,1717945839541,-20846.88647575,0.0002913,13]
[328878961,1717945839555,-1466.88746637,0.0002913,13]
[328879074,1717945842160,-683.683,0.0002903,2]
[328879075,1717945842176,-6816.317,0.0002903,2]
[328879076,1717945842190,-163.51,0.0002912,10]
[328879077,1717945842201,-48809.12261727,0.0002913,13]
[328879078,1717945842214,-39815.81943252,0.0002913,13]
[328879079,1717945842227,-2868.43341692,0.0002913,13]
[328879080,1717945842242,-88595.05697333,0.0002913,13]
[328879081,1717945842254,-264.0,0.0002913,5]
[328879082,1717945842266,-5401.91403213,0.0002913,10]
[328879083,1717945842280,-1599.37077202,0.0002913,10]
[328879084,1717945842294,-375.745,0.0002913,10]
[328879085,1717945842308,-6787.29724564,0.0002913,10]
[328879086,1717945842322,-301.21,0.0002913,10]
[328879088,1717945843959,-140371.93019724,0.0002913,10]
[328879089,1717945843973,-2093.72748058,0.0002913,10]
[328879090,1717945843987,-385.66261705,0.0002913,10]
[328879091,1717945843999,-369.48815699,0.0002913,10]
[328879092,1717945844012,-292.26457967,0.0002913,10]
[328879100,1717945845267,-243.0,0.0002913,5]
[328879101,1717945845463,-106116.32201262,0.0002913,10]
[328879102,1717945845478,-29150.83926005,0.0002913,10]
[328879118,1717945847957,-2052.77498263,0.00025,2]
[328879119,1717945848430,-12417.7242176,0.00025,2]
[328879120,1717945848441,-17796.04120922,0.00027,2]
[328879121,1717945848453,-201.29519189,0.00028984,2]
[328879122,1717945848463,-6459.76757492,0.0002913,10]
[328879123,1717945848585,-3e-08,0.0002913,10]
[328879134,1717947032779,-444.50127724,0.00017257,2]
[328879135,1717947032791,-91.78713245,0.00017257,2]
[328879136,1717947032802,-1203.53154072,0.00017258,2]
[328879137,1717947032811,-1203.53154072,0.00017258,2]
[328879138,1717947032821,-1203.53154072,0.00017258,2]
[328879139,1717947032831,-1203.53154072,0.00017258,2]
[328879140,1717947032840,-1203.53154072,0.00017258,2]
[328879141,1717947032850,-2649.613,0.00018524,2]
[328879142,1717947032862,-278.676,0.00018524,2]
[328879143,1717947032873,-2889.918,0.00018524,2]
[328879144,1717947032882,-1029.041,0.00018524,2]